[Event "Almaty Open 2019"]
[Site "Almaty"]
[Date "2019.10.13"]
[Round "8.3"]
[White "Makhnev, Denis"]
[Black "Smirnov, Pavel"]
[Result "1/2-1/2"]
[ECO "E06"]
[WhiteElo "2478"]
[BlackElo "2556"]
[Annotator "ChessBase"]
[PlyCount "88"]
[EventDate "2019.10.07"]
[EventType "swiss"]
[EventCountry "KAZ"]
[SourceTitle "playchess.com"]
[Source "ChessBase"]
[SourceQuality "1"]
[TimeControl "5400+30"]

1. d4 {[%emt 0:00:00]} d5 {[%emt 0:01:27]} 2. c4 {[%emt 0:00:00]} e6 {[%emt 0:00:04]} 3. Nf3 {[%emt 0:00:00]} Nf6 {[%emt 0:00:20]} 4. g3 {[%emt 0:00:00]} Be7 {[%emt 0:01:58]} 5. Bg2 {[%emt 0:00:00]} O-O {[%emt 0:00:05]} 6. O-O {[%emt 0:00:08]} c6 {[%emt 0:00:03]} 7. Qc2 {[%emt 0:00:35]} b6 {[%emt 0:00:05]} 8. Nbd2 {[%emt 0:01:11]} Bb7 {[%emt 0:00:11]} 9. e4 {[%emt 0:00:08]} Na6 {[%emt 0:00:03]} 10. a3 {[%emt 0:00:20]} dxc4 {[%emt 0:00:10]} 11. e5 {[%emt 0:02:35]} Nd5 {[%emt 0:00:07]} 12. Nxc4 {[%emt 0:00:05]} c5 {[%emt 0:00:08]} 13. dxc5 {[%emt 0:02:07]} Nxc5 {[%emt 0:00:06]} 14. b4 {[%emt 0:00:25]} Nd7 {[%emt 0:00:06]} 15. Bb2 {[%emt 0:00:05]} Rc8 {[%emt 0:00:03]} 16. Qb3 {[%emt 0:00:12]} b5 {[%emt 0:00:06]} 17. Na5 {[%emt 0:05:02]} Nc5 {[%emt 0:03:58]} 18. Qd1 {[%emt 0:14:53]} Ba8 {[%emt 0:01:21]} 19. Rc1 {[%emt 0:04:15]} Na4 {[%emt 0:00:20]} 20. Qe2 {[%emt 0:02:54]} Nxb2 {[%emt 0:18:13]} 21. Qxb2 {[%emt 0:00:18]} Qd7 {[%emt 0:00:02]} 22. Nd4 {[%emt 0:05:50]} a6 {[%emt 0:02:47]} 23. Ndb3 {[%emt 0:03:38]} Rxc1 {[%emt 0:04:07]} 24. Rxc1 {[%emt 0:00:11]} Rc8 {[%emt 0:01:17]} 25. Rc2 {[%emt 0:18:44]} Rxc2 {[%emt 0:05:36]} 26. Qxc2 {[%emt 0:00:06]} Bd8 {[%emt 0:00:08]} 27. Nc5 {[%emt 0:01:39]} Qc8 {[%emt 0:00:23]} 28. Nab3 {[%emt 0:00:32]} Bb6 {[%emt 0:03:47]} 29. Qd3 {[%emt 0:01:49]} Bc6 {[%emt 0:09:49]} 30. Be4 {[%emt 0:03:05]} h6 {[%emt 0:01:16]} 31. Qc2 {[%emt 0:03:37]} Qc7 {[%emt 0:08:01]} 32. Nd3 {[%emt 0:10:14]} Ne7 {[%emt 0:04:10]} 33. Bg2 {[%emt 0:01:08]} Qb7 {[%emt 0:08:08]} 34. Bxc6 {[%emt 0:02:52]} Nxc6 {[%emt 0:00:13]} 35. Ndc5 {[%emt 0:00:49]} Qa8 {[%emt 0:03:50]} 36. Nd7 {[%emt 0:07:51]} Ba7 {[%emt 0:01:03]} 37. Qe4 {[%emt 0:00:05]} Qc8 {[%emt 0:00:31]} 38. Nbc5 {[%emt 0:00:48]} a5 {[%emt 0:02:03]} 39. Kg2 {[%emt 0:00:07]} axb4 {[%emt 0:03:05]} 40. axb4 {[%emt 0:00:07]} Ne7 {[%emt 0:00:07]} 41. Qb7 {[%emt 0:01:57]} Qc6+ {[%emt 0:04:19]} 42. f3 {[%emt 0:01:01]} Qxb7 {[%emt 0:04:53]} 43. Nxb7 {[%emt 0:00:05]} Nd5 {[%emt 0:01:48]} 44. Nd6 {[%emt 0:00:09]} Nxb4 {[%emt 0:00:35]} 1/2-1/2

[Event "Almaty Open 2019"]
[Site "Almaty"]
[Date "2019.10.13"]
[Round "8.4"]
[White "Hamitevici, Vladimir"]
[Black "Utegaliyev, Azamat"]
[Result "0-1"]
[ECO "B06"]
[WhiteElo "2472"]
[BlackElo "2503"]
[Annotator "ChessBase"]
[PlyCount "78"]
[EventDate "2019.10.07"]
[EventType "swiss"]
[EventCountry "KAZ"]
[SourceTitle "playchess.com"]
[Source "ChessBase"]
[SourceQuality "1"]
[TimeControl "5400+30"]

1. Nf3 {[%emt 0:02:41]} g6 {[%emt 0:03:39]} 2. d4 {[%emt 0:01:05]} Bg7 {[%emt 0:00:11]} 3. e4 {[%emt 0:04:07]} d6 {[%emt 0:00:14]} 4. c3 {[%emt 0:01:48]} Nd7 {[%emt 0:10:30]} 5. Bd3 {[%emt 0:00:17]} b6 {[%emt 0:00:22]} 6. O-O {[%emt 0:02:31]} Bb7 {[%emt 0:00:13]} 7. Re1 {[%emt 0:03:09]} e6 {[%emt 0:00:32]} 8. h3 {[%emt 0:02:18]} a6 {[%emt 0:04:06]} 9. Bf4 {[%emt 0:00:58]} Ne7 {[%emt 0:03:38]} 10. a4 {[%emt 0:09:00]} h6 {[%emt 0:02:07]} 11. h4 {[%emt 0:07:31]} O-O {[%emt 0:16:03]} 12. Na3 {[%emt 0:06:48]} Nf6 {[%emt 0:09:31]} 13. Bg3 {[%emt 0:04:02]} Ng4 {[%emt 0:09:20]} 14. Nd2 {[%emt 0:03:21]} Nf6 {[%emt 0:06:08]} 15. Bh2 {[%emt 0:11:45]} h5 {[%emt 0:02:06]} 16. f3 {[%emt 0:08:02]} c5 {[%emt 0:01:19]} 17. Nc2 {[%emt 0:06:12]} Ne8 {[%emt 0:02:02]} 18. Bg3 {[%emt 0:01:23]} d5 {[%emt 0:00:59]} 19. e5 {[%emt 0:10:00]} c4 {[%emt 0:00:53]} 20. Bf1 {[%emt 0:02:39]} Nf5 {[%emt 0:00:03]} 21. Bf2 {[%emt 0:00:13]} Nxh4 {[%emt 0:00:23]} 22. Ne3 {[%emt 0:04:32]} Bh6 {[%emt 0:09:37]} 23. g3 {[%emt 0:00:34]} Nf5 {[%emt 0:00:17]} 24. Ng2 {[%emt 0:00:19]} Qg5 {[%emt 0:02:51]} 25. Nb1 {[%emt 0:00:38]} Qd8 {[%emt 0:01:36]} 26. g4 {[%emt 0:00:10]} hxg4 {[%emt 0:01:10]} 27. fxg4 {[%emt 0:00:01]} Nfg7 {[%emt 0:00:06]} 28. Bh4 {[%emt 0:01:08]} Bg5 {[%emt 0:00:17]} 29. Bg3 {[%emt 0:00:22]} f5 {[%emt 0:00:59]} 30. exf6 {[%emt 0:00:08]} Nxf6 {[%emt 0:00:47]} 31. Nd2 {[%emt 0:00:23]} Nxg4 {[%emt 0:04:29]} 32. Qxg4 {[%emt 0:02:18]} Bxd2 {[%emt 0:00:02]} 33. Qxg6 {[%emt 0:01:37]} Bxe1 {[%emt 0:01:42]} 34. Be5 {[%emt 0:00:23]} Bf2+ {[%emt 0:00:57]} 35. Kh2 {[%emt 0:00:17]} Qe7 {[%emt 0:00:16]} 36. Be2 {[%emt 0:00:14]} Rf5 {[%emt 0:00:43]} 37. Bg4 {[%emt 0:00:27]} Rg5 {[%emt 0:04:13]} 38. Bxe6+ {[%emt 0:00:12]} Kf8 {[%emt 0:00:04]} 39. Nf4 {[%emt 0:01:35]} Bg3+ {[%emt 0:00:09]} 0-1

[Event "Almaty Open 2019"]
[Site "Almaty"]
[Date "2019.10.13"]
[Round "8.5"]
[White "Kostenko, Petr"]
[Black "Khusenkhojaev, Muhammad"]
[Result "1-0"]
[ECO "B90"]
[WhiteElo "2462"]
[BlackElo "2434"]
[Annotator "ChessBase"]
[PlyCount "68"]
[EventDate "2019.10.07"]
[EventType "swiss"]
[EventCountry "KAZ"]
[SourceTitle "playchess.com"]
[Source "ChessBase"]
[SourceQuality "1"]
[TimeControl "5400+30"]

1. e4 {[%emt 0:00:00]} c5 {[%emt 0:01:43]} 2. Nf3 {[%emt 0:00:00]} d6 {[%emt 0:00:06]} 3. d4 {[%emt 0:00:00]} cxd4 {[%emt 0:00:04]} 4. Nxd4 {[%emt 0:00:00]} Nf6 {[%emt 0:00:05]} 5. Nc3 {[%emt 0:00:00]} a6 {[%emt 0:00:11]} 6. Be3 {[%emt 0:00:01]} e5 {[%emt 0:00:26]} 7. Nb3 {[%emt 0:00:30]} Be7 {[%emt 0:00:31]} 8. f3 {[%emt 0:00:22]} Be6 {[%emt 0:00:18]} 9. Qd2 {[%emt 0:00:16]} Nbd7 {[%emt 0:00:55]} 10. g4 {[%emt 0:01:29]} O-O {[%emt 0:00:34]} 11. Rg1 {[%emt 0:02:08]} b5 {[%emt 0:06:01]} 12. g5 {[%emt 0:00:27]} Nh5 {[%emt 0:00:10]} 13. a4 {[%emt 0:00:19]} b4 {[%emt 0:01:56]} 14. Nd5 {[%emt 0:00:12]} Bxd5 {[%emt 0:00:08]} 15. exd5 {[%emt 0:02:54]} Qc7 {[%emt 0:03:59]} 16. a5 {[%emt 0:16:52]} f5 {[%emt 0:04:32]} 17. gxf6 {[%emt 0:16:08]} Bxf6 {[%emt 0:00:48]} 18. O-O-O {[%emt 0:00:18]} Qb7 {[%emt 0:05:38]} 19. Kb1 {[%emt 0:09:48]} Nf4 {[%emt 0:00:28]} 20. Rg4 {[%emt 0:00:43]} Rab8 {[%emt 0:06:38]} 21. Bxf4 {[%emt 0:11:55]} exf4 {[%emt 0:01:35]} 22. Rxf4 {[%emt 0:00:09]} Be5 {[%emt 0:00:05]} 23. Rxf8+ {[%emt 0:00:08]} Rxf8 {[%emt 0:00:05]} 24. Qe2 {[%emt 0:00:07]} Nb8 {[%emt 0:01:01]} 25. Bh3 {[%emt 0:00:49]} Kh8 {[%emt 0:00:03]} 26. Bg4 {[%emt 0:01:15]} Qf7 {[%emt 0:01:04]} 27. Nd4 {[%emt 0:02:52]} h5 {[%emt 0:00:05]} 28. Be6 {[%emt 0:01:03]} Qf4 {[%emt 0:02:19]} 29. Nc6 {[%emt 0:00:30]} Bf6 {[%emt 0:00:13]} 30. Qe4 {[%emt 0:05:38]} Qxh2 {[%emt 0:00:21]} 31. Qxb4 {[%emt 0:01:15]} Qe2 {[%emt 0:00:24]} 32. Re1 {[%emt 0:01:44]} Qxf3 {[%emt 0:00:20]} 33. Nxb8 {[%emt 0:01:09]} h4 {[%emt 0:00:04]} 34. Nd7 {[%emt 0:00:54]} Ra8 1-0

[Event "Almaty Open 2019"]
[Site "Almaty"]
[Date "2019.10.13"]
[Round "8.6"]
[White "Dzhumaev, Marat"]
[Black "Moisseyenko, Ilya"]
[Result "1-0"]
[ECO "B26"]
[WhiteElo "2428"]
[BlackElo "2264"]
[Annotator "NA"]
[PlyCount "71"]
[EventDate "2019.10.07"]
[EventType "swiss"]
[EventCountry "KAZ"]
[SourceTitle "playchess.com"]
[Source "ChessBase"]
[SourceQuality "1"]
[TimeControl "5400+30"]

1. e4 {[%emt 0:05:34]} c5 {[%emt 0:00:00]} 2. Nc3 {[%emt 0:00:37]} d6 {[%emt 0:00:00]} 3. g3 {[%emt 0:01:01]} g6 {[%emt 0:00:00]} 4. Bg2 {[%emt 0:00:13]} Bg7 {[%emt 0:00:00]} 5. d3 {[%emt 0:00:13]} Nc6 {[%emt 0:00:27]} 6. Be3 {[%emt 0:00:14]} e6 {[%emt 0:00:36]} 7. Qd2 {[%emt 0:01:22]} Nd4 {[%emt 0:00:41]} 8. Nd1 {[%emt 0:01:09]} Ne7 {[%emt 0:00:28]} 9. c3 {[%emt 0:00:13]} Ndc6 {[%emt 0:00:03]} 10. Bh6 {[%emt 0:04:14]} O-O {[%emt 0:00:50]} 11. Bxg7 {[%emt 0:00:28]} Kxg7 {[%emt 0:00:02]} 12. Ne3 {[%emt 0:06:27]} b5 {[%emt 0:07:48]} 13. Ne2 {[%emt 0:00:57]} b4 {[%emt 0:01:37]} 14. O-O {[%emt 0:01:40]} bxc3 {[%emt 0:00:13]} 15. bxc3 {[%emt 0:00:07]} Ba6 {[%emt 0:01:04]} 16. f4 {[%emt 0:01:45]} f5 {[%emt 0:12:17]} 17. exf5 {[%emt 0:02:15]} gxf5 {[%emt 0:02:29]} 18. Rae1 {[%emt 0:16:34]} Qd7 {[%emt 0:17:16]} 19. c4 {[%emt 0:05:17]} e5 {[%emt 0:07:59]} 20. g4 {[%emt 0:05:28]} fxg4 {[%emt 0:03:18]} 21. f5 {[%emt 0:00:08]} Kh8 {[%emt 0:01:25]} 22. Ng3 {[%emt 0:00:30]} Bb7 {[%emt 0:04:37]} 23. Nxg4 {[%emt 0:10:34]} Nxf5 {[%emt 0:03:40]} 24. Nxf5 {[%emt 0:22:41]} Rxf5 {[%emt 0:00:05]} 25. Rxf5 {[%emt 0:09:19]} Qxf5 {[%emt 0:00:02]} 26. h3 {[%emt 0:01:18]} Rd8 {[%emt 0:28:18]} 27. Be4 {[%emt 0:00:19]} Qd7 {[%emt 0:03:12]} 28. Qg2 {[%emt 0:01:35]} Na5 {[%emt 0:01:05]} 29. Rf1 {[%emt 0:01:12]} Rg8 {[%emt 0:00:58]} 30. Kh2 {[%emt 0:00:18]} h5 {[%emt 0:01:16]} 31. Rf6 {[%emt 0:00:10]} Qg7 {[%emt 0:02:38]} 32. Qd2 {[%emt 0:00:08]} Bxe4 {[%emt 0:00:22]} 33. dxe4 {[%emt 0:00:04]} Rf8 {[%emt 0:00:28]} 34. Rh6+ {[%emt 0:00:18]} Kg8 {[%emt 0:00:00]} 35. Qd5+ {[%emt 0:01:32]} Rf7 {[%emt 0:00:47]} 36. Nf6+ {[%emt 0:00:11]} 1-0

[Event "Almaty Open 2019"]
[Site "Almaty"]
[Date "2019.10.13"]
[Round "8.7"]
[White "Barsov, Alexei"]
[Black "Serikbay, Chingiz"]
[Result "1/2-1/2"]
[ECO "A50"]
[WhiteElo "2365"]
[BlackElo "2298"]
[Annotator "NA"]
[PlyCount "51"]
[EventDate "2019.10.07"]
[EventType "swiss"]
[EventCountry "KAZ"]
[SourceTitle "playchess.com"]
[Source "ChessBase"]
[SourceQuality "1"]
[TimeControl "5400+30"]

1. d4 {[%emt 0:00:00]} Nf6 {[%emt 0:00:00]} 2. c4 {[%emt 0:00:00]} c6 {[%emt 0:00:00]} 3. Nc3 {[%emt 0:00:00]} d5 {[%emt 0:00:02]} 4. cxd5 {[%emt 0:00:02]} cxd5 {[%emt 0:00:03]} 5. Bf4 {[%emt 0:00:08]} Nc6 {[%emt 0:00:04]} 6. e3 {[%emt 0:00:05]} a6 {[%emt 0:00:03]} 7. Bd3 {[%emt 0:00:25]} Bg4 {[%emt 0:00:09]} 8. Nge2 {[%emt 0:00:08]} e6 {[%emt 0:00:29]} 9. O-O {[%emt 0:00:13]} Be7 {[%emt 0:00:37]} 10. Rc1 {[%emt 0:00:19]} O-O {[%emt 0:00:29]} 11. Na4 {[%emt 0:00:11]} Nd7 {[%emt 0:02:29]} 12. Qb3 {[%emt 0:00:14]} e5 {[%emt 0:16:30]} 13. dxe5 {[%emt 0:34:15]} Ndxe5 {[%emt 0:00:06]} 14. Nd4 {[%emt 0:01:10]} Nxd4 {[%emt 0:07:03]} 15. exd4 {[%emt 0:00:11]} Nxd3 {[%emt 0:00:04]} 16. Qxd3 {[%emt 0:00:07]} Qa5 {[%emt 0:09:35]} 17. Qb3 {[%emt 0:04:31]} Rac8 {[%emt 0:33:41]} 18. Qxb7 {[%emt 0:26:39]} Rxc1 {[%emt 0:07:30]} 19. Rxc1 {[%emt 0:03:28]} Bf6 {[%emt 0:00:06]} 20. Nc3 {[%emt 0:18:30]} Bxd4 {[%emt 0:00:24]} 21. Nxd5 {[%emt 0:00:49]} Qxa2 {[%emt 0:06:31]} 22. Bd6 {[%emt 0:00:48]} Re8 {[%emt 0:04:50]} 23. Qc6 {[%emt 0:06:49]} Rd8 {[%emt 0:00:01]} 24. Qc7 {[%emt 0:00:40]} Re8 {[%emt 0:00:12]} 25. Qc6 {[%emt 0:00:52]} Rd8 {[%emt 0:00:01]} 26. Qc7 {[%emt 0:00:30]} 1/2-1/2

[Event "Almaty Open 2019"]
[Site "Almaty"]
[Date "2019.10.13"]
[Round "8.8"]
[White "Kenzhalin, Nursultan"]
[Black "Amanov, Zhanibek"]
[Result "0-1"]
[ECO "E11"]
[WhiteElo "2185"]
[BlackElo "2339"]
[Annotator "NA"]
[PlyCount "108"]
[EventDate "2019.10.07"]
[EventType "swiss"]
[EventCountry "KAZ"]
[SourceTitle "playchess.com"]
[Source "ChessBase"]
[SourceQuality "1"]
[TimeControl "5400+30"]

1. d4 {[%emt 0:00:00]} Nf6 {[%emt 0:08:05]} 2. c4 {[%emt 0:00:06]} e6 {[%emt 0:00:11]} 3. Nf3 {[%emt 0:00:05]} Bb4+ {[%emt 0:02:44]} 4. Bd2 {[%emt 0:00:21]} a5 {[%emt 0:00:09]} 5. a3 {[%emt 0:01:22]} Bxd2+ {[%emt 0:00:15]} 6. Nbxd2 {[%emt 0:00:16]} a4 {[%emt 0:00:13]} 7. e3 {[%emt 0:01:06]} d6 {[%emt 0:07:17]} 8. Bd3 {[%emt 0:01:50]} Qe7 {[%emt 0:00:11]} 9. O-O {[%emt 0:04:28]} O-O {[%emt 0:02:31]} 10. Rc1 {[%emt 0:01:42]} e5 {[%emt 0:00:28]} 11. Qc2 {[%emt 0:05:24]} Re8 {[%emt 0:03:42]} 12. e4 {[%emt 0:07:21]} Bg4 {[%emt 0:03:12]} 13. c5 {[%emt 0:05:22]} Nbd7 {[%emt 0:05:03]} 14. dxe5 {[%emt 0:05:50]} Nxe5 {[%emt 0:00:23]} 15. Nxe5 {[%emt 0:00:27]} dxe5 {[%emt 0:00:40]} 16. h3 {[%emt 0:05:36]} Bd7 {[%emt 0:00:22]} 17. Be2 {[%emt 0:00:59]} Bc6 {[%emt 0:00:44]} 18. Rfe1 {[%emt 0:02:51]} Red8 {[%emt 0:04:43]} 19. Bf3 {[%emt 0:03:45]} Rd4 {[%emt 0:00:58]} 20. Nf1 {[%emt 0:00:32]} Rad8 {[%emt 0:00:41]} 21. Rcd1 {[%emt 0:06:44]} Rxd1 {[%emt 0:03:29]} 22. Rxd1 {[%emt 0:00:35]} Rxd1 {[%emt 0:00:15]} 23. Qxd1 {[%emt 0:00:07]} Nd7 {[%emt 0:03:37]} 24. Ne3 {[%emt 0:02:00]} Nxc5 {[%emt 0:08:11]} 25. Nf5 {[%emt 0:02:48]} Qf6 {[%emt 0:04:03]} 26. Qc2 {[%emt 0:01:41]} b6 {[%emt 0:04:27]} 27. Qc4 {[%emt 0:01:14]} g6 {[%emt 0:02:19]} 28. Ne3 {[%emt 0:02:00]} Kg7 {[%emt 0:04:41]} 29. Ng4 {[%emt 0:03:13]} Qd6 {[%emt 0:07:10]} 30. Qc1 {[%emt 0:05:21]} h5 {[%emt 0:00:47]} 31. Qh6+ {[%emt 0:02:15]} Kg8 {[%emt 0:00:51]} 32. Ne3 {[%emt 0:00:06]} Bxe4 {[%emt 0:01:27]} 33. Be2 {[%emt 0:00:23]} Ne6 {[%emt 0:08:42]} 34. Bf1 {[%emt 0:09:09]} Qf8 {[%emt 0:00:31]} 35. Qxf8+ {[%emt 0:00:02]} Kxf8 {[%emt 0:00:11]} 36. Bb5 {[%emt 0:00:39]} Nc5 {[%emt 0:00:12]} 37. f3 {[%emt 0:00:09]} Bb7 {[%emt 0:00:34]} 38. Kf2 {[%emt 0:00:56]} c6 {[%emt 0:02:29]} 39. Be2 {[%emt 0:00:01]} b5 {[%emt 0:00:33]} 40. Nd1 {[%emt 0:00:35]} Ke7 {[%emt 0:00:22]} 41. h4 {[%emt 0:00:28]} f5 {[%emt 0:01:29]} 42. g3 {[%emt 0:00:13]} f4 {[%emt 0:00:48]} 43. Nc3 {[%emt 0:00:10]} Bc8 {[%emt 0:00:56]} 44. Na2 {[%emt 0:00:46]} Be6 {[%emt 0:00:38]} 45. Nb4 {[%emt 0:00:06]} Kd6 {[%emt 0:00:13]} 46. gxf4 {[%emt 0:01:12]} exf4 {[%emt 0:00:07]} 47. Bd3 {[%emt 0:00:03]} Bf7 {[%emt 0:03:07]} 48. Be4 {[%emt 0:02:12]} Nxe4+ {[%emt 0:03:13]} 49. fxe4 {[%emt 0:00:01]} Bc4 {[%emt 0:00:08]} 50. e5+ {[%emt 0:02:51]} Kxe5 {[%emt 0:00:22]} 51. Nxc6+ {[%emt 0:00:01]} Ke4 {[%emt 0:01:23]} 52. Ne7 {[%emt 0:00:18]} Kd3 {[%emt 0:00:30]} 53. Nxg6 {[%emt 0:00:48]} Kc2 {[%emt 0:00:07]} 54. Nxf4 {[%emt 0:00:10]} Kxb2 {[%emt 0:00:15]} 0-1

[Event "Almaty Open 2019"]
[Site "Almaty"]
[Date "2019.10.13"]
[Round "8.9"]
[White "Mezentsev, Ivan"]
[Black "Stupak, Kirill"]
[Result "0-1"]
[ECO "A04"]
[WhiteElo "2351"]
[BlackElo "2551"]
[Annotator "ChessBase"]
[PlyCount "111"]
[EventDate "2019.10.07"]
[EventType "swiss"]
[EventCountry "KAZ"]
[SourceTitle "playchess.com"]
[Source "ChessBase"]
[SourceQuality "1"]
[TimeControl "5400+30"]

1. Nf3 {[%emt 0:00:00]} g6 {[%emt 0:11:16]} 2. c4 {[%emt 0:01:45]} Bg7 {[%emt 0:00:05]} 3. Nc3 {[%emt 0:00:47]} c5 {[%emt 0:00:30]} 4. d4 {[%emt 0:03:46]} cxd4 {[%emt 0:00:06]} 5. Nxd4 {[%emt 0:00:05]} Nc6 {[%emt 0:00:03]} 6. e3 {[%emt 0:01:17]} Nf6 {[%emt 0:01:43]} 7. Be2 {[%emt 0:01:58]} O-O {[%emt 0:00:09]} 8. Nf3 {[%emt 0:05:18]} d6 {[%emt 0:05:58]} 9. O-O {[%emt 0:00:46]} Bf5 {[%emt 0:10:17]} 10. Bd2 {[%emt 0:09:37]} d5 {[%emt 0:03:38]} 11. Rc1 {[%emt 0:05:21]} dxc4 {[%emt 0:04:08]} 12. Bxc4 {[%emt 0:00:21]} Rc8 {[%emt 0:00:05]} 13. Qa4 {[%emt 0:10:27]} a6 {[%emt 0:10:36]} 14. Be2 {[%emt 0:01:12]} Qb6 {[%emt 0:02:41]} 15. e4 {[%emt 0:03:24]} Be6 {[%emt 0:04:16]} 16. Qa3 {[%emt 0:10:57]} Qb4 {[%emt 0:02:27]} 17. Qxb4 {[%emt 0:04:28]} Nxb4 {[%emt 0:00:02]} 18. a3 {[%emt 0:01:44]} Na2 {[%emt 0:03:29]} 19. Nxa2 {[%emt 0:01:09]} Bxa2 {[%emt 0:02:07]} 20. e5 {[%emt 0:02:10]} Nd7 {[%emt 0:01:30]} 21. Bb4 {[%emt 0:01:46]} Nxe5 {[%emt 0:07:21]} 22. Bxe7 {[%emt 0:01:12]} Rfe8 {[%emt 0:07:50]} 23. Rxc8 {[%emt 0:02:01]} Rxc8 {[%emt 0:00:05]} 24. Bg5 {[%emt 0:04:10]} Rc2 {[%emt 0:01:59]} 25. Nd4 {[%emt 0:07:40]} Rxb2 {[%emt 0:00:20]} 26. Bc1 {[%emt 0:03:16]} Rb1 {[%emt 0:01:01]} 27. f4 {[%emt 0:01:26]} Nd3 {[%emt 0:04:31]} 28. Bxd3 {[%emt 0:01:39]} Bxd4+ {[%emt 0:00:02]} 29. Kh1 {[%emt 0:00:04]} Ra1 {[%emt 0:00:54]} 30. Bd2 {[%emt 0:05:05]} Rxf1+ {[%emt 0:00:30]} 31. Bxf1 {[%emt 0:00:03]} b5 {[%emt 0:00:06]} 32. Bd3 {[%emt 0:00:30]} f5 {[%emt 0:00:40]} 33. h3 {[%emt 0:00:04]} Bd5 {[%emt 0:02:16]} 34. Kh2 {[%emt 0:00:26]} Bb2 {[%emt 0:00:24]} 35. Bb4 {[%emt 0:00:11]} Bc1 {[%emt 0:00:06]} 36. Kg3 {[%emt 0:00:53]} Kf7 {[%emt 0:00:19]} 37. h4 {[%emt 0:00:14]} Ke6 {[%emt 0:01:36]} 38. h5 {[%emt 0:00:05]} gxh5 {[%emt 0:00:10]} 39. Be2 {[%emt 0:00:09]} h4+ {[%emt 0:00:17]} 40. Kxh4 {[%emt 0:00:02]} Bxg2 {[%emt 0:00:40]} 41. Kg5 {[%emt 0:00:03]} Be4 {[%emt 0:01:11]} 42. a4 {[%emt 0:00:23]} bxa4 {[%emt 0:00:44]} 43. Bxa6 {[%emt 0:00:04]} h6+ {[%emt 0:03:23]} 44. Kxh6 {[%emt 0:01:36]} Bxf4+ {[%emt 0:00:05]} 45. Kg6 {[%emt 0:00:08]} Be3 {[%emt 0:01:18]} 46. Bc8+ {[%emt 0:02:03]} Ke5 {[%emt 0:00:03]} 47. Bd7 {[%emt 0:00:08]} Bc2 {[%emt 0:01:05]} 48. Bc3+ {[%emt 0:00:19]} Kf4 {[%emt 0:01:06]} 49. Kf6 {[%emt 0:00:34]} a3 {[%emt 0:00:57]} 50. Be5+ {[%emt 0:00:21]} Kg4 {[%emt 0:00:18]} 51. Be6 {[%emt 0:00:20]} Bc1 {[%emt 0:00:47]} 52. Bd6 {[%emt 0:00:19]} Bb2+ {[%emt 0:00:14]} 53. Be5 {[%emt 0:04:13]} Bb1 {[%emt 0:00:43]} 54. Bb3 {[%emt 0:00:17]} Bxe5+ {[%emt 0:00:17]} 55. Kxe5 {[%emt 0:00:04]} a2 {[%emt 0:00:08]} 56. Kd4 0-1

[Event "Almaty Open 2019"]
[Site "Almaty"]
[Date "2019.10.13"]
[Round "8.10"]
[White "Bekturov, Tamerlan"]
[Black "Urazayev, Arystanbek"]
[Result "0-1"]
[ECO "E04"]
[WhiteElo "2226"]
[BlackElo "2420"]
[Annotator "NA"]
[PlyCount "149"]
[EventDate "2019.10.07"]
[EventType "swiss"]
[EventCountry "KAZ"]
[SourceTitle "playchess.com"]
[Source "ChessBase"]
[SourceQuality "1"]
[TimeControl "5400+30"]

1. d4 {[%emt 0:00:00]} Nf6 {[%emt 0:00:51]} 2. c4 {[%emt 0:00:00]} e6 {[%emt 0:00:24]} 3. g3 {[%emt 0:00:00]} d5 {[%emt 0:03:37]} 4. Bg2 {[%emt 0:00:56]} dxc4 {[%emt 0:00:15]} 5. Nf3 {[%emt 0:00:07]} Bd7 {[%emt 0:00:33]} 6. Ne5 {[%emt 0:00:48]} Bc6 {[%emt 0:00:05]} 7. Nxc6 {[%emt 0:00:05]} Nxc6 {[%emt 0:00:04]} 8. e3 {[%emt 0:00:17]} Qd7 {[%emt 0:00:13]} 9. O-O {[%emt 0:00:12]} Rd8 {[%emt 0:00:09]} 10. Qa4 {[%emt 0:16:19]} Nb4 {[%emt 0:00:19]} 11. Qxd7+ {[%emt 0:03:42]} Rxd7 {[%emt 0:00:07]} 12. Na3 {[%emt 0:01:04]} c5 {[%emt 0:00:06]} 13. dxc5 {[%emt 0:01:42]} Bxc5 {[%emt 0:00:48]} 14. Nxc4 {[%emt 0:00:24]} Nd3 {[%emt 0:00:07]} 15. b3 {[%emt 0:06:38]} O-O {[%emt 0:00:25]} 16. Ba3 {[%emt 0:01:24]} Bxa3 {[%emt 0:00:07]} 17. Nxa3 {[%emt 0:00:06]} Rfd8 {[%emt 0:00:07]} 18. Rfd1 {[%emt 0:10:42]} g5 {[%emt 0:26:22]} 19. Rd2 {[%emt 0:07:36]} Nc5 {[%emt 0:02:03]} 20. Rxd7 {[%emt 0:02:23]} Rxd7 {[%emt 0:00:09]} 21. Rc1 {[%emt 0:01:53]} b6 {[%emt 0:03:42]} 22. Nc4 {[%emt 0:04:15]} h5 {[%emt 0:02:40]} 23. Ne5 {[%emt 0:05:31]} Rd2 {[%emt 0:03:50]} 24. b4 {[%emt 0:00:08]} Nd3 {[%emt 0:04:35]} 25. Nxd3 {[%emt 0:09:54]} Rxd3 {[%emt 0:00:06]} 26. Rc2 {[%emt 0:01:02]} Rd1+ {[%emt 0:07:09]} 27. Bf1 {[%emt 0:00:27]} g4 {[%emt 0:05:07]} 28. Kg2 {[%emt 0:04:00]} Ne4 {[%emt 0:02:53]} 29. Be2 {[%emt 0:02:55]} Rb1 {[%emt 0:05:34]} 30. b5 {[%emt 0:04:11]} Nc5 {[%emt 0:02:25]} 31. h3 {[%emt 0:00:43]} f5 {[%emt 0:00:43]} 32. hxg4 {[%emt 0:00:57]} hxg4 {[%emt 0:00:04]} 33. f3 {[%emt 0:00:06]} gxf3+ {[%emt 0:01:43]} 34. Kxf3 {[%emt 0:00:05]} Rb4 {[%emt 0:01:55]} 35. Bc4 {[%emt 0:01:28]} Kf7 {[%emt 0:00:22]} 36. g4 {[%emt 0:00:45]} Nd7 {[%emt 0:07:21]} 37. Be2 {[%emt 0:03:42]} Ne5+ {[%emt 0:00:40]} 38. Kf2 {[%emt 0:02:52]} fxg4 {[%emt 0:04:01]} 39. Kg3 {[%emt 0:00:13]} Kf6 {[%emt 0:01:02]} 40. Rd2 {[%emt 0:00:15]} Re4 {[%emt 0:02:55]} 41. Kf2 {[%emt 0:00:41]} Ra4 {[%emt 0:00:27]} 42. Kg3 {[%emt 0:01:05]} Kg5 {[%emt 0:03:30]} 43. Rd4 {[%emt 0:01:29]} Rxa2 {[%emt 0:01:54]} 44. Bxg4 {[%emt 0:00:10]} Nxg4 {[%emt 0:00:10]} 45. Rxg4+ {[%emt 0:00:06]} Kf5 {[%emt 0:00:22]} 46. Rh4 {[%emt 0:02:42]} Ke5 {[%emt 0:01:16]} 47. Kf3 {[%emt 0:01:10]} Kd5 {[%emt 0:01:02]} 48. Rh5+ {[%emt 0:01:14]} Kd6 {[%emt 0:02:39]} 49. Ke4 {[%emt 0:00:08]} Ra5 {[%emt 0:01:11]} 50. Rh7 {[%emt 0:00:14]} Ra4+ {[%emt 0:00:59]} 51. Kd3 {[%emt 0:00:12]} Kd5 {[%emt 0:00:06]} 52. Rd7+ {[%emt 0:02:00]} Kc5 {[%emt 0:00:32]} 53. Re7 {[%emt 0:00:06]} Kxb5 {[%emt 0:00:25]} 54. Rxe6 {[%emt 0:00:05]} Kc5 {[%emt 0:01:13]} 55. Re5+ {[%emt 0:00:25]} Kd6 {[%emt 0:00:25]} 56. Rh5 {[%emt 0:00:47]} Ra1 {[%emt 0:00:53]} 57. Kd4 {[%emt 0:01:33]} Kc6 {[%emt 0:00:34]} 58. Rh6+ {[%emt 0:01:37]} Kb5 {[%emt 0:00:12]} 59. e4 {[%emt 0:00:58]} a5 {[%emt 0:01:22]} 60. e5 {[%emt 0:01:27]} Rd1+ {[%emt 0:00:42]} 61. Ke4 {[%emt 0:00:29]} a4 {[%emt 0:01:49]} 62. Rh3 {[%emt 0:00:06]} Kc5 {[%emt 0:00:58]} 63. Rc3+ {[%emt 0:01:47]} Kb4 {[%emt 0:00:18]} 64. Re3 {[%emt 0:00:08]} a3 {[%emt 0:00:45]} 65. e6 {[%emt 0:00:24]} Rd8 {[%emt 0:01:24]} 66. Ke5 {[%emt 0:00:47]} a2 {[%emt 0:00:46]} 67. Re1 {[%emt 0:00:05]} b5 {[%emt 0:00:18]} 68. e7 {[%emt 0:00:53]} Re8 {[%emt 0:00:04]} 69. Kd6 {[%emt 0:00:18]} Ka3 {[%emt 0:00:53]} 70. Re3+ {[%emt 0:00:44]} Ka4 {[%emt 0:00:35]} 71. Re1 {[%emt 0:00:47]} b4 {[%emt 0:00:53]} 72. Kc5 {[%emt 0:00:53]} b3 {[%emt 0:00:26]} 73. Re6 {[%emt 0:00:32]} Ka3 {[%emt 0:00:05]} 74. Re1 {[%emt 0:00:27]} Rxe7 {[%emt 0:00:43]} 75. Kd5 0-1